bitfinex/quotes_ETHUSD_20250726
["timestamp","ask_amount","ask_price","bid_price","bid_amount"]
[1753492818061,2.82222165,3720.5,3720.2,0.4694]
[1753492818256,2.82222165,3720.5,3720.1,0.55]
[1753492818767,2.82222165,3720.5,3720.1,1.0194]
[1753492819173,2.82222165,3720.5,3720.1,0.55]
[1753492819546,3.26472165,3720.5,3720.1,1.0194]
[1753492821170,2.68788508,3720.4,3720.1,1.0194]
[1753492821475,0.4421,3720.4,3720.1,0.55]
[1753492822179,0.4421,3720.4,3720.1,1.0217]
[1753492822556,3.27853274,3720.5,3720.1,1.0217]
[1753492822757,2.82223274,3720.5,3720.1,1.0217]
[1753492822974,2.82223274,3720.5,3720.2,0.4717]
[1753492824582,2.68791381,3720.4,3720.1,0.55]
[1753492824886,2.68791381,3720.4,3720.1,1.0217]
[1753492825040,3.2643289,3720.5,3720.1,1.0217]
[1753492825672,3.2643289,3720.5,3720.1,0.55]
[1753492825892,3.2643289,3720.5,3720.2,0.4717]
[1753492826049,0.1344,3720.5,3720.2,0.4717]
[1753492826249,0.1344,3720.5,3720.1,0.55]
[1753492826571,0.1344,3720.5,3720.3,0.4717]
[1753492827358,0.1344,3720.5,3720.4,0.4421]
[1753492827855,0.1344,3720.5,3720.4,0.9138]
[1753492828484,2.438,3720.7,3720.4,0.9138]
[1753492828678,2.5724,3720.7,3720.4,0.9138]
[1753492828877,2.5724,3720.7,3720.5,0.9138]
[1753492829075,2.5724,3720.7,3720.6,0.4717]
[1753492829990,2.5724,3720.7,3720.6,0.9138]
[1753492830408,0.1344,3720.7,3720.6,0.4717]
[1753492831605,0.1344,3720.7,3720.6,0.9138]
[1753492833793,0.1344,3720.8,3720.6,0.9138]
[1753492833993,0.1344,3720.8,3720.6,0.4421]
[1753492834196,0.1344,3720.8,3720.7,0.4717]
[1753492837791,0.1344,3720.8,3720.5,0.4717]
[1753492838499,0.1344,3720.8,3720.4,0.4421]
[1753492838807,0.1344,3720.8,3720.6,0.4717]
[1753492840700,0.1344,3720.8,3720.4,0.55]
[1753492840905,1.8533,3720.8,3720.4,0.55]
[1753492841215,0.4421,3720.7,3720.4,0.55]
[1753492841676,1.4112,3720.8,3720.4,1.0217]
[1753492841872,0.9549,3720.8,3720.5,0.4717]
[1753492842265,0.9549,3720.8,3720.4,0.9921]
[1753492842471,0.9549,3720.8,3720.5,0.4717]
[1753492844824,0.9549,3720.8,3720.6,0.4717]
[1753492845314,0.1344,3720.8,3720.6,0.4717]
[1753492845517,0.1344,3720.8,3720.7,0.4717]
[1753492846215,0.1344,3720.8,3720.4,0.55]
[1753492846427,0.1344,3720.8,3719.8,2.6882662]
[1753492846428,2.68801874,3720.3,3719.8,0.4717]
[1753492846726,2.6880314,3720.2,3720.0,0.55]
[1753492847014,3.2644717,3720.3,3720.0,0.55]
[1753492847182,2.8223717,3720.3,3719.9,0.55]
[1753492847378,2.68803237,3720.2,3719.9,0.55]
[1753492847623,2.68803237,3720.2,3719.9,1.0217]
[1753492848117,3.26447397,3720.3,3719.9,1.0217]
[1753492848727,3.26447397,3720.3,3719.9,0.55]
[1753492849022,3.26447397,3720.3,3720.0,0.4717]
[1753492849332,0.1344,3720.3,3720.0,0.4717]
[1753492850418,0.1344,3720.3,3720.1,0.4999]
[1753492851418,2.82236366,3720.3,3720.1,0.4999]
[1753492852317,0.1344,3720.3,3720.1,0.4999]
[1753492852724,0.1344,3720.3,3720.2,0.4999]
[1753492855733,0.1344,3720.3,3720.2,0.9512]
[1753492856066,2.438,3720.4,3720.2,0.9512]
[1753492856394,2.438,3720.4,3720.3,0.4999]
[1753492857536,2.82221765,3720.5,3720.3,0.4999]
[1753492858497,0.1344,3720.5,3720.3,0.4999]
[1753492858736,0.1344,3720.5,3720.2,0.4513]
[1753492858940,0.1344,3720.5,3720.4,0.4999]
[1753492860428,2.82221077,3720.5,3720.4,0.4999]
[1753492860925,0.1344,3720.5,3720.4,0.4999]
[1753492861339,2.82221077,3720.5,3720.4,0.4999]
[1753492861507,0.1344,3720.5,3720.4,0.4999]
[1753492863335,4.4144,3720.0,3719.9,3.50852047]
[1753492863559,4.4144,3720.0,3719.9,3.26696663]
[1753492863759,4.4144,3720.0,3719.9,1.5047]
[1753492864854,4.4144,3720.0,3719.9,0.6844]
[1753492865149,4.4144,3720.0,3719.9,0.55]
[1753492865349,4.4144,3720.0,3719.9,1.0499]
[1753492866967,4.4144,3720.0,3719.9,1.5012]
[1753492867168,4.4144,3720.0,3719.9,3.09968705]
[1753492869070,4.4144,3720.0,3719.9,2.64838705]
[1753492871305,4.4144,3720.0,3719.9,3.09968705]
[1753492871798,4.4144,3720.0,3719.9,10.74113135]
[1753492873006,4.4144,3720.0,3719.9,13.74113135]
[1753492873203,4.4144,3720.0,3719.9,16.17913135]
[1753492878016,4.4144,3720.0,3719.9,15.72783135]
[1753492878191,4.4144,3720.0,3719.9,16.17913135]
[1753492884892,0.4505,3720.9,3720.8,3.23759406]
[1753492885092,0.4505,3720.9,3720.8,5.67559406]
[1753492885433,0.8781,3720.9,3720.8,5.67559406]
[1753492887146,1.3412,3721.3,3720.9,0.55]
[1753492887349,0.8907,3721.6,3721.3,0.55]
[1753492887647,0.8907,3721.6,3721.4,2.437]
[1753492887845,0.8781,3721.5,3721.4,2.437]
[1753492890264,1.694,3721.5,3721.4,2.437]
[1753492890563,3.50317455,3721.3,3720.9,4.2]
[1753492890762,0.8159,3721.2,3721.0,2.437]
[1753492890933,1.694,3721.2,3721.0,2.437]
[1753492891270,0.8781,3721.1,3721.0,2.987]
[1753492899079,0.8781,3721.1,3721.0,2.437]
[1753492899372,0.8781,3721.1,3721.0,2.987]
[1753492899547,1.2664,3721.2,3721.0,2.987]
[1753492899751,0.8781,3721.1,3721.0,2.987]
[1753492902576,0.8781,3721.1,3721.0,2.437]
[1753492903475,0.8781,3721.1,3721.0,2.987]
[1753492905776,0.8781,3721.1,3721.0,0.55]
[1753492907662,2.68744961,3721.0,3720.7,2.987]
[1753492907978,0.8781,3720.9,3720.7,2.987]
[1753492908180,3.56564052,3720.9,3720.7,2.987]
[1753492908349,0.8781,3720.8,3720.7,2.987]
[1753492909068,0.8781,3720.8,3720.7,0.55]
[1753492909273,0.8781,3720.8,3720.4,2.437]
[1753492909274,2.68783687,3720.5,3720.4,2.437]
[1753492909476,4.49033687,3720.5,3720.3,2.437]
[1753492909661,3.56598302,3720.4,3720.3,2.437]
[1753492909852,3.56598302,3720.4,3720.0,0.1344]
[1753492910052,0.8781,3720.3,3720.2,0.55]
[1753492910784,0.8781,3720.3,3720.1,0.55]
[1753492910961,2.68788302,3720.4,3720.1,0.55]
[1753492911162,0.8952,3720.2,3720.1,0.55]
[1753492911998,0.9244,3720.5,3720.1,0.55]
[1753492912290,0.8952,3720.4,3720.1,0.55]
[1753492912657,3.61223211,3720.5,3720.1,0.55]
[1753492912854,0.8952,3720.3,3720.1,0.55]
[1753492913355,0.8952,3720.2,3720.1,0.55]
[1753492914766,0.8952,3720.2,3720.0,0.55]
[1753492914974,0.8952,3720.1,3720.0,0.55]
[1753492915284,0.8952,3720.1,3719.9,0.55]
[1753492915591,0.8952,3720.0,3719.9,0.55]
[1753492917364,1.0296,3720.2,3719.9,0.55]
[1753492917567,0.8952,3720.1,3719.9,0.55]
[1753492918903,0.8952,3720.0,3719.9,0.55]
[1753492919087,1.6911,3720.0,3719.9,0.55]
[1753492922974,1.6911,3720.0,3719.8,0.55]
[1753492925624,1.6911,3720.0,3719.8,2.987]
[1753492926246,0.6002,3720.2,3719.8,3.4538]
[1753492926417,0.6002,3720.2,3719.8,3.65284273]
[1753492926722,1.0296,3720.2,3719.8,3.65284273]
[1753492927315,0.4658,3720.1,3719.8,3.65284273]
[1753492927492,0.5638,3720.2,3719.8,3.65284273]
[1753492927682,0.1344,3720.2,3720.0,0.55]
[1753492928009,0.1344,3720.2,3720.0,0.4668]
[1753492928387,0.7661,3720.7,3720.2,0.55]
[1753492928715,0.1344,3720.5,3720.3,0.4668]
[1753492930205,0.6002,3720.5,3720.2,0.55]
[1753492930399,0.6002,3720.5,3720.2,1.0168]
[1753492932521,0.1344,3720.5,3720.3,0.4668]
[1753492934419,1.0296,3720.5,3720.2,0.55]
[1753492934592,0.5638,3720.5,3720.2,0.55]
[1753492934792,0.4658,3720.4,3720.2,0.55]
[1753492935712,0.8952,3720.4,3720.2,0.55]
[1753492935916,0.8952,3720.4,3720.1,2.9038]
[1753492936325,0.8952,3720.4,3720.2,0.55]
[1753492936526,0.8952,3720.3,3720.2,0.55]
[1753492936945,0.1344,3720.5,3720.2,0.55]
[1753492937243,0.4658,3720.4,3720.2,0.55]
[1753492937400,0.8952,3720.4,3720.2,0.55]
[1753492938441,0.1344,3720.5,3720.2,0.55]
[1753492938598,0.4658,3720.3,3720.2,0.55]
[1753492938812,0.8952,3720.3,3720.1,0.55]
[1753492939013,0.4294,3720.2,3720.1,0.55]
[1753492939213,0.8952,3720.2,3720.1,0.55]
[1753492939455,0.8952,3720.2,3720.0,2.437]
[1753492939618,0.8952,3720.4,3720.1,0.55]
[1753492939825,0.4294,3720.4,3720.1,0.55]
[1753492940024,0.8952,3720.4,3720.1,0.55]
[1753492940250,0.8952,3720.4,3720.1,1.0367]
[1753492940737,0.4558,3720.3,3720.1,0.55]
[1753492942166,0.4294,3720.4,3720.1,0.55]
[1753492942368,0.4558,3720.3,3720.1,0.55]
[1753492942668,0.4558,3720.3,3720.1,2.987]
[1753492943767,0.4684,3720.3,3720.1,2.987]
[1753492944059,1.0586,3720.2,3720.1,2.437]
[1753492944768,2.82248537,3720.2,3719.9,0.55]
[1753492945070,0.9242,3720.1,3719.9,0.55]
[1753492945442,0.9242,3720.0,3719.9,0.55]
[1753492945826,0.1344,3720.2,3719.9,0.55]
[1753492946033,2.68817204,3720.0,3719.9,0.55]
[1753492946250,0.9242,3720.0,3719.9,0.55]
[1753492946678,2.68817204,3720.0,3719.7,0.1344]
[1753492946885,2.82278177,3719.8,3719.4,2.437]
[1753492947187,2.82278177,3719.8,3719.5,0.55]
[1753492947188,0.9242,3719.7,3719.5,0.55]
[1753492947684,3.6126158,3719.7,3719.4,2.987]
[1753492948088,3.6126158,3719.7,3719.3,0.55]
[1753492948267,3.6126158,3719.7,3719.5,0.55]
[1753492949692,0.4558,3719.6,3719.5,0.55]
[1753492950788,2.6884158,3719.7,3719.4,0.55]
[1753492951091,0.9242,3719.6,3719.4,0.55]
[1753492952196,3.61266449,3719.6,3719.4,0.55]
[1753492952395,0.4558,3719.5,3719.4,0.55]
[1753492952594,2.68846449,3719.6,3719.4,0.55]
[1753492952892,0.5902,3719.8,3719.4,1.0367]
[1753492953078,0.1344,3719.8,3719.3,0.55]
[1753492953275,0.8246,3719.7,3719.3,0.55]
[1753492953488,1.7488,3719.7,3719.3,0.55]
[1753492953689,1.7488,3719.7,3719.4,0.4867]
[1753492954078,0.8246,3719.7,3719.3,0.55]
[1753492954319,0.4558,3719.6,3719.3,1.0367]
[1753492954895,0.4558,3719.6,3719.3,3.4737]
[1753492955402,0.4558,3719.6,3719.3,3.67517807]
[1753492957818,1.293,3719.7,3719.3,3.67517807]
[1753492957996,1.7488,3719.7,3719.3,3.18847807]
[1753492958187,1.7488,3719.7,3719.4,0.4867]
[1753492959015,1.7488,3719.7,3719.3,3.18847807]
[1753492959199,0.9242,3719.6,3719.3,3.18847807]
[1753492959599,0.9242,3719.5,3719.3,3.18847807]
[1753492959987,2.6887346,3719.3,3718.6,3.45017773]
[1753492960319,2.6887346,3719.3,3718.6,0.6211]
[1753492960320,1.0586,3719.2,3718.6,0.6211]
[1753492960616,3.61302256,3719.1,3718.3,0.761]
[1753492960819,0.1344,3718.7,3718.4,2.9237]
[1753492961193,0.1344,3718.7,3718.5,0.4867]
[1753492963336,0.1344,3718.7,3718.4,2.437]
[1753492963736,1.0586,3718.7,3718.4,2.437]
[1753492963904,0.1344,3718.7,3718.5,2.437]
[1753492964112,0.9242,3718.6,3718.5,2.437]
[1753492964442,0.4558,3718.6,3718.5,2.437]
[1753492964625,0.1344,3718.7,3718.5,2.437]
[1753492965239,0.9242,3718.6,3718.5,2.437]
[1753492966435,0.9242,3718.6,3718.4,2.987]
[1753492967209,0.1344,3718.7,3718.4,2.987]
[1753492967410,0.5902,3718.7,3718.4,3.4737]
[1753492967612,0.8214,3719.3,3718.7,0.55]
[1753492967811,0.1344,3719.1,3718.8,0.4867]
[1753492968012,0.1344,3719.1,3718.9,0.4867]
[1753492968339,1.0586,3719.1,3718.7,1.0367]
[1753492968532,0.9242,3719.0,3718.8,2.437]
[1753492968838,0.1344,3719.1,3718.7,0.55]
[1753492969039,0.9242,3718.9,3718.7,2.987]
[1753492969246,0.4684,3718.9,3718.7,2.987]
[1753492969607,0.9242,3718.9,3718.7,2.987]
[1753492969840,0.4684,3718.9,3718.7,2.987]
[1753492970038,0.4558,3718.8,3718.7,2.987]
[1753492971636,0.9015,3718.8,3718.7,2.987]
[1753492972350,0.9015,3718.8,3718.7,0.55]
[1753492974647,0.1344,3719.1,3718.8,0.55]
[1753492974851,0.9307,3719.0,3718.8,0.55]
[1753492975051,0.9307,3718.9,3718.7,0.55]
[1753492977349,0.5801,3719.1,3718.7,0.55]
[1753492977524,0.9307,3719.0,3718.7,0.55]
[1753492980640,0.7794,3718.9,3718.7,0.55]
[1753492980846,1.7101,3718.9,3718.4,0.55]
[1753492981044,0.1344,3718.7,3718.4,2.987]
[1753492981355,2.82351357,3718.7,3718.4,2.987]
[1753492981550,0.9307,3718.6,3718.4,2.987]
[1753492984160,0.9307,3718.6,3718.3,0.55]
[1753492984355,0.9307,3718.6,3718.3,2.987]
[1753492984759,0.9307,3718.6,3718.3,3.4398]
[1753492984969,0.9307,3718.6,3718.3,1.0028]
[1753492985459,0.9307,3718.6,3718.3,3.4398]
[1753492986540,0.9307,3718.6,3718.3,1.0028]
[1753492986767,0.9307,3718.6,3718.3,3.4398]
[1753492987248,0.1344,3718.7,3718.3,2.987]
[1753492987449,0.1344,3718.7,3718.4,0.4528]
[1753492987689,0.1344,3718.7,3718.5,0.4528]
[1753492988248,0.1344,3718.7,3718.3,2.987]
[1753492988583,0.1344,3718.7,3718.4,0.4528]
[1753492988877,0.1344,3718.7,3718.5,0.4528]
[1753492991593,0.1344,3718.7,3718.3,6.10628692]
[1753492991794,0.1344,3718.7,3718.6,0.4528]
[1753492992002,0.1344,3718.7,3718.5,0.55]
[1753492992704,0.1344,3718.7,3718.4,1.0028]
[1753492993797,0.1344,3718.7,3718.5,0.4528]
[1753492997287,1.0651,3718.7,3718.4,0.55]
[1753492997799,0.1344,3718.7,3718.4,0.55]
[1753492997966,0.1344,3718.7,3718.4,1.0028]
[1753492998166,1.0651,3718.7,3718.4,1.0028]
[1753492998500,0.9307,3718.6,3718.3,2.987]
[1753492998699,0.1344,3718.7,3718.3,2.987]
[1753492998905,0.1344,3718.7,3718.4,0.4528]
[1753492999312,0.1344,3718.7,3718.5,0.4528]
[1753493002616,0.1344,3718.7,3718.3,5.67639529]
[1753493002617,0.1344,3718.7,3718.3,0.55]
[1753493002924,1.0803,3718.7,3718.5,0.55]
[1753493006924,1.07602421,3718.7,3718.5,0.55]
[1753493009331,3.76515092,3718.7,3718.5,0.55]
[1753493009830,2.6891841,3718.6,3718.5,0.55]
[1753493010513,3.76516162,3718.7,3718.5,0.55]
[1753493010719,1.07602421,3718.7,3718.5,0.55]
[1753493010919,3.76514111,3718.7,3718.5,0.55]
[1753493011501,1.07602421,3718.7,3718.5,0.55]
[1753493011722,3.76514367,3718.7,3718.5,0.55]
[1753493013332,1.07602421,3718.7,3718.5,0.55]
[1753493014730,3.76513857,3718.7,3718.5,0.55]
[1753493016644,2.6891841,3718.6,3718.4,0.55]
[1753493016831,3.1643841,3718.6,3718.4,0.55]
[1753493017460,3.1643841,3718.6,3718.3,0.55]
[1753493017658,3.6350841,3718.6,3718.3,1.0356]
[1753493018239,0.9459,3718.6,3718.3,1.0356]
[1753493019079,3.63509043,3718.6,3718.3,1.0356]
[1753493019273,0.9459,3718.6,3718.3,1.0356]
[1753493019576,3.63509834,3718.6,3718.3,1.0356]
[1753493020076,3.63509834,3718.6,3718.3,0.55]
[1753493020576,0.4752,3718.5,3718.3,0.55]
[1753493020765,2.68919834,3718.6,3718.3,3.58094234]
[1753493020938,3.63509834,3718.6,3718.3,3.58094234]
[1753493021379,2.68926368,3718.5,3718.3,3.58094234]
[1753493021584,2.68925926,3718.5,3718.3,3.58094234]
[1753493021879,3.63509988,3718.6,3718.3,3.58094234]
[1753493022379,0.9459,3718.6,3718.3,3.58094234]
[1753493022682,0.9459,3718.6,3718.3,4.06654234]
[1753493023549,2.81925212,3718.7,3718.3,4.06654234]
[1753493023749,3.76515212,3718.7,3718.3,4.06654234]
[1753493024188,3.76515212,3718.7,3718.4,0.4856]
[1753493025897,0.4752,3718.6,3718.3,3.58094234]
[1753493026097,0.4752,3718.6,3718.3,5.05769621]
[1753493026260,0.9459,3718.5,3718.3,3.58094234]
[1753493026693,0.9459,3718.5,3718.3,0.55]
[1753493026694,2.68932874,3718.4,3718.3,0.55]
[1753493026896,3.63522874,3718.4,3718.3,0.55]
[1753493027291,0.9459,3718.4,3718.3,0.55]
[1753493032489,5.12620662,3718.6,3718.3,0.55]
[1753493032690,6.05580662,3718.6,3718.3,0.55]
[1753493032990,0.9296,3718.5,3718.3,0.55]
[1753493033190,0.4659,3718.4,3718.3,0.55]
[1753493033384,0.9296,3718.4,3718.3,0.55]
[1753493033587,0.4659,3718.4,3718.3,0.55]
[1753493033768,2.68925982,3718.5,3718.3,0.55]
[1753493034168,3.61885982,3718.5,3718.3,0.55]
[1753493034702,0.9296,3718.5,3718.3,0.55]
[1753493034995,0.4659,3718.5,3718.3,0.55]
[1753493035396,5.12621098,3718.6,3718.3,0.55]
[1753493035596,2.6892616,3718.5,3718.3,0.55]
[1753493036404,6.05580132,3718.6,3718.3,0.55]
[1753493036575,6.05580132,3718.6,3718.2,0.5961]
[1753493037403,6.05580132,3718.6,3718.3,0.55]
[1753493037572,2.68925744,3718.5,3718.3,1.0117]
[1753493037772,2.68925744,3718.5,3718.3,0.55]
[1753493038065,3.15515744,3718.5,3718.3,0.55]
[1753493038269,0.4659,3718.5,3718.3,0.55]
[1753493038488,2.9007,3718.6,3718.3,0.55]
[1753493038680,0.9296,3718.4,3718.3,0.55]
[1753493040005,0.9296,3718.4,3718.2,0.1344]
[1753493040176,2.6892768,3718.5,3718.3,0.55]
[1753493040382,2.68932874,3718.4,3718.3,0.55]
[1753493041002,3.61892874,3718.4,3718.3,0.55]
[1753493041391,3.61892874,3718.4,3718.2,0.1344]
[1753493041392,3.61892874,3718.4,3718.1,0.6844]
[1753493041589,2.68932874,3718.4,3718.1,0.6844]
[1753493041902,0.9296,3718.3,3718.1,0.6844]
[1753493042090,0.9296,3718.4,3718.1,1.1461]
[1753493042290,2.68926453,3718.5,3718.1,1.1461]
[1753493042494,3.61886453,3718.5,3718.1,1.1461]
[1753493042669,0.9296,3718.5,3718.1,1.1461]
[1753493042866,2.437,3718.6,3718.4,0.55]
[1753493043070,5.12618906,3718.6,3718.4,1.0117]
[1753493043809,2.437,3718.6,3718.4,1.0117]
[1753493045214,0.59602421,3718.7,3718.4,1.0117]
[1753493045215,0.13012421,3718.7,3718.6,3.2391841]
[1753493045511,0.1344,3719.0,3718.7,0.55]
[1753493045820,0.7976,3718.9,3718.0,5.72052269]
[1753493045972,0.1344,3718.6,3718.4,0.55]
[1753493046377,0.9296,3718.5,3718.2,0.55]
[1753493046711,0.4659,3718.4,3718.2,0.55]
[1753493047097,0.4637,3718.5,3718.4,0.55]
[1753493047297,0.6003,3718.6,3718.4,0.55]
[1753493047680,1.064,3718.6,3718.4,0.55]
[1753493047882,0.1344,3718.6,3718.4,1.0117]
[1753493048451,2.437,3718.9,3718.6,0.55]
[1753493048587,0.9296,3719.3,3718.6,0.55]
[1753493048588,0.1344,3718.8,3718.7,3.49264234]
[1753493050420,0.1344,3718.8,3718.7,3.03094234]
[1753493050421,0.6003,3718.8,3718.7,3.03094234]
[1753493050821,0.6003,3718.8,3718.5,0.55]
[1753493051190,0.6003,3718.8,3718.5,1.0117]
[1753493051390,0.1344,3718.8,3718.5,3.7009526]
[1753493051590,0.1344,3718.8,3718.6,0.4617]
[1753493053492,0.1344,3718.8,3718.5,0.55]
[1753493053688,0.1344,3718.8,3718.5,1.0117]
[1753493053921,0.1344,3718.8,3718.5,3.70095521]
[1753493054101,0.1344,3718.8,3718.5,4.66386175]
[1753493054301,0.1344,3718.8,3718.6,0.4617]
[1753493055830,0.1344,3718.8,3718.5,3.23925521]
[1753493056001,0.9296,3718.7,3718.5,5.67525521]
[1753493056340,0.4659,3718.6,3718.5,2.986]
[1753493056631,0.9296,3718.6,3718.5,2.986]
[1753493057933,0.9296,3718.6,3717.9,0.95843338]
[1753493058245,0.4659,3718.5,3718.2,0.55]
[1753493058603,0.9296,3718.4,3718.2,0.55]
[1753493061561,0.9296,3718.4,3718.2,2.986]
[1753493061950,0.7993,3718.4,3718.2,0.55]
[1753493062239,0.9442,3718.3,3718.1,0.55]
[1753493062436,0.9442,3718.2,3717.8,2.436]
[1753493062640,0.9442,3718.1,3717.9,0.55]
[1753493064940,0.9442,3718.1,3717.7,6.4702]
[1753493065246,0.9442,3718.1,3717.9,0.55]
[1753493066637,0.4584,3718.1,3717.8,0.55]
[1753493066852,0.4584,3718.1,3717.8,3.23975714]
[1753493067037,0.9442,3718.1,3717.8,3.72395714]
[1753493067241,0.9442,3718.1,3717.8,1.0342]
[1753493067649,0.9442,3718.1,3717.8,3.72395364]
[1753493068148,0.9442,3718.1,3717.8,6.15995364]
[1753493068717,0.9442,3718.1,3717.9,2.68968239]
[1753493069449,0.9442,3718.1,3717.8,6.1599456]
[1753493070525,0.9442,3718.1,3717.8,3.7239456]
[1753493070732,0.9442,3718.1,3717.9,2.436]
[1753493071371,0.9442,3718.1,3717.9,5.12568003]
[1753493071850,0.4858,3718.1,3717.9,5.12568003]
[1753493073222,0.4858,3718.1,3717.9,5.12561888]
[1753493074462,0.9442,3718.1,3717.9,5.12561888]
[1753493075354,1.2851,3718.4,3718.0,1.0342]
[1753493075531,0.1344,3718.3,3718.0,2.08526471]
[1753493075730,1.0786,3718.3,3718.0,2.08526471]
[1753493075954,1.0786,3718.3,3718.0,4.77483608]
[1753493076142,1.0786,3718.3,3718.0,4.29063608]
[1753493076341,0.1344,3718.3,3718.0,3.23957137]
[1753493076562,0.9442,3718.2,3718.0,3.23957137]
[1753493077152,0.9442,3718.2,3717.6,1.08931574]
[1753493077153,0.7512,3718.0,3716.1,0.7911]
[1753493077324,0.7512,3718.0,3716.5,4.04044711]
[1753493077325,0.9442,3717.9,3716.5,4.04044711]
[1753493077528,0.90234,3717.8,3716.9,4.04044711]
[1753493077832,0.1344,3717.7,3717.3,4.04044711]
[1753493078037,0.1344,3717.7,3717.4,3.412]
[1753493078223,0.1344,3717.7,3717.4,2.47]
[1753493078424,0.1344,3717.7,3717.4,3.412]
[1753493079654,2.68993273,3717.6,3717.4,3.412]
[1753493079842,0.28243327,3717.5,3717.4,3.412]
[1753493080264,0.1344,3717.7,3717.4,3.412]
[1753493080562,2.6899187,3717.6,3717.4,3.412]
[1753493080856,2.82425065,3717.7,3717.4,3.412]
[1753493081635,0.1344,3717.7,3717.4,3.412]
[1753493081842,0.1344,3717.7,3717.5,0.942]
[1753493082046,2.82423715,3717.7,3717.5,0.942]
[1753493082252,0.1344,3717.7,3717.6,0.942]
[1753493082462,2.68975415,3717.9,3717.6,0.942]
[1753493082665,2.82415415,3717.9,3717.6,0.942]
[1753493082961,2.82415415,3717.9,3717.7,0.942]
[1753493083141,2.82415415,3717.9,3717.8,2.469]
[1753493084562,3.30995415,3717.9,3717.8,2.469]
[1753493084731,2.82415415,3717.9,3717.8,2.469]
[1753493086371,3.30995415,3717.9,3717.8,2.469]
[1753493086863,2.68976276,3717.8,3717.7,2.469]
[1753493088883,2.68984194,3717.7,3717.5,0.942]
[1753493089050,2.68984194,3717.7,3717.6,2.467]
[1753493089544,2.68977903,3717.8,3717.6,2.467]
[1753493089757,2.68977903,3717.8,3717.6,3.409]
[1753493090336,2.68978394,3717.8,3717.6,3.409]
[1753493090982,0.1344,3717.9,3717.6,3.409]
[1753493091476,2.82415189,3717.9,3717.6,3.409]
[1753493091765,2.82415189,3717.9,3717.7,0.4693]
[1753493091966,2.68976276,3717.8,3717.7,0.4693]
[1753493092435,2.68976276,3717.8,3717.6,2.9512]
[1753493092871,2.68976276,3717.8,3717.6,3.4205]
[1753493093889,2.68983511,3717.7,3717.6,0.9535]
[1753493094092,2.68983511,3717.7,3717.6,2.466]
[1753493094455,3.1696874,3717.8,3717.6,2.466]
[1753493094857,2.68983511,3717.7,3717.6,2.466]
[1753493095504,2.68983511,3717.7,3717.4,0.4643]
[1753493095505,2.68991884,3717.6,3717.4,0.55]
[1753493095657,2.68991884,3717.6,3717.5,2.465]
[1753493095857,3.16981884,3717.6,3717.4,0.55]
[1753493096057,3.16981884,3717.6,3717.5,2.465]
[1753493096386,0.4799,3717.6,3717.5,2.465]
[1753493097108,2.68977395,3717.8,3717.5,3.3986]
[1753493097400,2.68977395,3717.8,3717.6,0.9336]
[1753493099906,2.68983511,3717.7,3717.6,0.9336]
[1753493100077,2.68977766,3717.8,3717.6,0.9336]
[1753493100273,2.68983511,3717.7,3717.6,2.464]
[1753493100481,3.16968393,3717.8,3717.6,2.464]
[1753493101389,2.82415372,3717.9,3717.5,2.463]
[1753493101566,2.68988877,3717.7,3717.5,2.463]
[1753493102612,3.16978877,3717.7,3717.5,2.463]
[1753493103879,2.68988877,3717.7,3717.5,2.463]
[1753493104110,0.4799,3717.6,3717.5,2.462]
[1753493104280,2.68988877,3717.7,3717.5,2.462]
[1753493104670,3.16968822,3717.8,3717.5,3.3956]
[1753493104870,0.1344,3717.9,3717.5,2.462]
[1753493105093,2.6897769,3717.8,3717.6,0.9336]
[1753493105300,2.82411517,3717.9,3717.5,2.462]
[1753493105502,0.1344,3717.9,3717.6,0.9336]
[1753493105709,2.68976276,3717.8,3717.6,3.3956]
[1753493107020,2.68976276,3717.8,3717.6,0.9336]
[1753493107188,2.68976276,3717.8,3717.6,3.3956]
[1753493107505,0.1344,3717.9,3717.7,0.55]
[1753493107712,0.7765,3718.3,3717.6,2.462]
[1753493107713,2.68940153,3718.3,3717.8,0.9336]
[1753493108002,0.4799,3718.3,3717.9,0.9336]
[1753493108213,0.1344,3718.2,3717.9,0.9336]
[1753493108397,0.6143,3718.2,3717.9,0.9336]
[1753493108712,0.4799,3718.1,3717.8,2.461]
[1753493109074,3.26143931,3718.2,3717.8,2.461]
[1753493109408,0.4799,3718.0,3717.8,2.461]
[1753493109905,0.4799,3718.0,3717.7,0.4693]
[1753493110126,0.4799,3718.0,3717.8,2.461]
[1753493110976,0.4799,3718.0,3717.7,0.9336]
[1753493111177,0.4799,3718.0,3717.8,2.46]
[1753493111921,0.1344,3718.2,3717.8,2.46]
[1753493112073,0.1344,3718.2,3717.8,3.3936]
[1753493112270,0.4799,3718.1,3717.8,3.3936]
[1753493112608,0.1344,3718.2,3717.8,3.3936]
[1753493112823,0.1344,3718.2,3717.9,0.9336]
[1753493112991,3.2375,3718.6,3718.0,1.3759]
[1753493113176,0.1344,3718.4,3718.1,0.9336]
[1753493113376,0.1344,3718.4,3718.0,1.3759]
[1753493113604,0.1344,3718.4,3718.1,0.9336]
[1753493113808,3.51277583,3718.9,3718.1,0.9336]
[1753493113809,0.8238,3718.9,3718.1,0.9336]
[1753493114121,0.1344,3718.5,3718.2,0.9336]
[1753493114312,2.68882958,3719.1,3718.5,0.55]